[Event "Titled Tuesday Blitz June 28 Late 2022"]
[White "Ambartsumova, Karina"]
[Black "Goncalves, Davi Sulzbacher"]
[WhiteFideId "4166299"]
[BlackFideId "2154510"]
[WhiteElo "2262"]
[BlackElo "2107"]
[Result "0-1"]
[Round "10"]
[TimeControl "180+1"]
[Date "2022.06.28"]
[WhiteClock "0:00:05"]
[BlackClock "0:00:23"]

1. Nf3 {[%clk 0:03:00]}  Nf6 {[%clk 0:02:59]} 2. g3 {[%clk 0:02:58]}  c5 {[%clk 0:03:00]} 3. c4 {[%clk 0:02:57]}  d5 {[%clk 0:02:59]} 4. cxd5 {[%clk 0:02:52]}  Nxd5 {[%clk 0:03:00]} 5. Bg2 {[%clk 0:02:52]}  g6 {[%clk 0:03:00]} 6. Nc3 {[%clk 0:02:53]}  Nxc3 {[%clk 0:02:59]} 7. dxc3 {[%clk 0:02:43]}  Qxd1+ {[%clk 0:02:59]} 8. Kxd1 {[%clk 0:02:44]}  Nc6 {[%clk 0:02:58]} 9. Be3 {[%clk 0:02:37]}  e5 {[%clk 0:02:48]} 10. Nd2 {[%clk 0:02:37]}  Bf5 {[%clk 0:02:43]} 11. h3 {[%clk 0:02:26]}  h5 {[%clk 0:02:42]} 12. Nb3 {[%clk 0:02:12]}  O-O-O+ {[%clk 0:02:42]} 13. Kc1 {[%clk 0:02:10]}  c4 {[%clk 0:02:30]} 14. Nd2 {[%clk 0:02:07]}  Na5 {[%clk 0:02:17]} 15. Bxa7 {[%clk 0:02:04]}  Bh6 {[%clk 0:02:16]} 16. e3 {[%clk 0:01:36]}  Kc7 {[%clk 0:02:08]} 17. Bc5 {[%clk 0:01:34]}  Bd3 {[%clk 0:01:38]} 18. Be7 {[%clk 0:01:21]}  Rd7 {[%clk 0:01:37]} 19. Bb4 {[%clk 0:01:14]}  Nc6 {[%clk 0:01:35]} 20. Be4 {[%clk 0:01:09]}  Rhd8 {[%clk 0:01:21]} 21. Bxd3 {[%clk 0:01:00]}  cxd3 {[%clk 0:01:22]} 22. Ba3 {[%clk 0:00:57]}  f5 {[%clk 0:01:16]} 23. b4 {[%clk 0:00:40]}  b5 {[%clk 0:01:07]} 24. Bb2 {[%clk 0:00:38]}  f4 {[%clk 0:00:59]} 25. gxf4 {[%clk 0:00:37]}  exf4 {[%clk 0:00:59]} 26. Re1 {[%clk 0:00:32]}  Re8 {[%clk 0:00:57]} 27. e4 {[%clk 0:00:30]}  f3 {[%clk 0:00:55]} 28. a4 {[%clk 0:00:25]}  Ne5 {[%clk 0:00:48]} 29. Ra2 {[%clk 0:00:15]}  Nc4 {[%clk 0:00:45]} 30. Ba1 {[%clk 0:00:15]}  bxa4 {[%clk 0:00:43]} 31. Kd1 {[%clk 0:00:12]}  Bxd2 {[%clk 0:00:39]} 32. Rxd2 {[%clk 0:00:13]}  Kc6 {[%clk 0:00:35]} 33. Ra2 {[%clk 0:00:12]}  Kb5 {[%clk 0:00:33]} 34. Rg1 {[%clk 0:00:08]}  Rxe4 {[%clk 0:00:31]} 35. Rg5+ {[%clk 0:00:09]}  Re5 {[%clk 0:00:30]} 36. Rxe5+ {[%clk 0:00:08]}  Nxe5 {[%clk 0:00:30]} 37. Rd2 {[%clk 0:00:03]}  Nc4 {[%clk 0:00:30]} 38. Bb2 {[%clk 0:00:02]}  a3 {[%clk 0:00:29]} 39. Bxa3 {[%clk 0:00:01]}  Nxa3 {[%clk 0:00:28]} 40. Ra2 {[%clk 0:00:02]}  Ka4 {[%clk 0:00:27]} 41. b5 {[%clk 0:00:01]}  Kb3 {[%clk 0:00:27]} 42. Ra1 {[%clk 0:00:01]}  Kb2 {[%clk 0:00:26]} 43. Rxa3 {[%clk 0:00:01]}  Kxa3 {[%clk 0:00:26]} 44. b6 {[%clk 0:00:02]}  Kb3 {[%clk 0:00:25]} 45. c4 {[%clk 0:00:03]}  Kxc4 {[%clk 0:00:25]} 46. Kd2 {[%clk 0:00:04]}  Re7 {[%clk 0:00:25]} 47. b7 {[%clk 0:00:05]}  Re2+ {[%clk 0:00:25]} 48. Kd1 {[%clk 0:00:05]}  Rb2 {[%clk 0:00:25]} 49. b8=Q {[%clk 0:00:03]}  Rxb8 {[%clk 0:00:24]} 50. Kd2 {[%clk 0:00:04]}  Kd4 {[%clk 0:00:25]} 51. Kc1 {[%clk 0:00:04]}  Kc3 {[%clk 0:00:25]} 52. Kd1 {[%clk 0:00:05]}  Rb1# {[%clk 0:00:23]} 0-1


[Site "https://www.chess.com"]

[Event "Titled Tuesday Blitz June 28 Late 2022"]
[White "Andreikin, Dmitry"]
[Black "Kamsky, Gata"]
[WhiteFideId "4158814"]
[BlackFideId "2000024"]
[WhiteElo "2736"]
[BlackElo "2645"]
[Result "1-0"]
[Round "10"]
[TimeControl "180+1"]
[Date "2022.06.28"]
[WhiteClock "0:01:04"]
[BlackClock "0:00:04"]

1. d4 {[%clk 0:03:00]}  d5 {[%clk 0:02:59]} 2. c4 {[%clk 0:03:00]}  c6 {[%clk 0:03:00]} 3. Nf3 {[%clk 0:03:01]}  Nf6 {[%clk 0:03:00]} 4. Qc2 {[%clk 0:03:01]}  g6 {[%clk 0:02:53]} 5. cxd5 {[%clk 0:03:01]}  cxd5 {[%clk 0:02:52]} 6. Bf4 {[%clk 0:03:00]}  Nc6 {[%clk 0:02:46]} 7. e3 {[%clk 0:03:00]}  Nh5 {[%clk 0:01:57]} 8. Bg5 {[%clk 0:02:59]}  h6 {[%clk 0:01:55]} 9. Bh4 {[%clk 0:02:59]}  g5 {[%clk 0:01:50]} 10. Bg3 {[%clk 0:02:59]}  Nxg3 {[%clk 0:01:45]} 11. hxg3 {[%clk 0:02:59]}  e6 {[%clk 0:01:44]} 12. Nc3 {[%clk 0:02:56]}  Bg7 {[%clk 0:01:42]} 13. Bb5 {[%clk 0:02:51]}  Bd7 {[%clk 0:01:41]} 14. Bxc6 {[%clk 0:02:45]}  Bxc6 {[%clk 0:01:41]} 15. O-O-O {[%clk 0:02:45]}  Qd6 {[%clk 0:01:37]} 16. Kb1 {[%clk 0:02:46]}  a6 {[%clk 0:01:31]} 17. Rc1 {[%clk 0:02:43]}  Rc8 {[%clk 0:01:24]} 18. Na4 {[%clk 0:02:34]}  Qe7 {[%clk 0:00:52]} 19. Nc5 {[%clk 0:01:51]}  O-O {[%clk 0:00:45]} 20. Ne5 {[%clk 0:01:48]}  Bb5 {[%clk 0:00:25]} 21. Ng4 {[%clk 0:01:48]}  Rfd8 {[%clk 0:00:17]} 22. Nxh6+ {[%clk 0:01:47]}  Kf8 {[%clk 0:00:16]} 23. Qh7 {[%clk 0:01:44]}  Qf6 {[%clk 0:00:16]} 24. Nxb7 {[%clk 0:01:19]}  Bxh6 {[%clk 0:00:12]} 25. Nxd8 {[%clk 0:01:10]}  Rxd8 {[%clk 0:00:04]} 26. Qxh6+ {[%clk 0:01:04]} 1-0


[Site "https://www.chess.com"]

[Event "Titled Tuesday Blitz June 28 Late 2022"]
[White "Barria Zuniga, Daniel"]
[Black "Rustemov, Alexander"]
[WhiteFideId "3400816"]
[BlackFideId "4119002"]
[WhiteElo "2414"]
[BlackElo "2736"]
[Result "1-0"]
[Round "10"]
[TimeControl "180+1"]
[Date "2022.06.28"]
[WhiteClock "0:00:14"]
[BlackClock "0:00:41"]

1. d4 {[%clk 0:03:00]}  f5 {[%clk 0:02:59]} 2. g3 {[%clk 0:02:58]}  Nf6 {[%clk 0:02:59]} 3. Bg2 {[%clk 0:02:56]}  g6 {[%clk 0:02:59]} 4. c4 {[%clk 0:02:56]}  Bg7 {[%clk 0:02:59]} 5. Nf3 {[%clk 0:02:56]}  O-O {[%clk 0:02:59]} 6. O-O {[%clk 0:02:57]}  d6 {[%clk 0:02:59]} 7. b4 {[%clk 0:02:57]}  e5 {[%clk 0:02:50]} 8. e3 {[%clk 0:02:56]}  e4 {[%clk 0:02:45]} 9. Nfd2 {[%clk 0:02:55]}  Be6 {[%clk 0:02:41]} 10. Nc3 {[%clk 0:02:47]}  Nbd7 {[%clk 0:02:40]} 11. a4 {[%clk 0:02:45]}  c6 {[%clk 0:02:38]} 12. c5 {[%clk 0:02:39]}  d5 {[%clk 0:02:38]} 13. b5 {[%clk 0:02:38]}  g5 {[%clk 0:02:33]} 14. a5 {[%clk 0:02:19]}  a6 {[%clk 0:02:33]} 15. bxc6 {[%clk 0:02:19]}  bxc6 {[%clk 0:02:33]} 16. Qa4 {[%clk 0:02:19]}  Qc7 {[%clk 0:02:28]} 17. Ba3 {[%clk 0:02:17]}  f4 {[%clk 0:02:27]} 18. Rfb1 {[%clk 0:02:10]}  fxe3 {[%clk 0:02:21]} 19. fxe3 {[%clk 0:02:10]}  Ng4 {[%clk 0:02:21]} 20. Nd1 {[%clk 0:02:06]}  Ndf6 {[%clk 0:02:03]} 21. Rb6 {[%clk 0:01:57]}  Nxh2 {[%clk 0:02:02]} 22. Qxc6 {[%clk 0:01:56]}  Qxg3 {[%clk 0:02:00]} 23. Qxe6+ {[%clk 0:01:56]}  Kh8 {[%clk 0:01:58]} 24. Qh3 {[%clk 0:01:30]}  Qe1+ {[%clk 0:01:57]} 25. Kxh2 {[%clk 0:01:30]}  Qxd2 {[%clk 0:01:58]} 26. c6 {[%clk 0:01:18]}  Rfc8 {[%clk 0:01:48]} 27. Be7 {[%clk 0:01:09]}  Rc7 {[%clk 0:01:18]} 28. Bd6 {[%clk 0:01:00]}  Rcc8 {[%clk 0:01:16]} 29. Be5 {[%clk 0:00:59]}  Qe2 {[%clk 0:01:09]} 30. Bxf6 {[%clk 0:00:39]}  Bxf6 {[%clk 0:01:09]} 31. Nc3 {[%clk 0:00:34]}  g4 {[%clk 0:01:01]} 32. Nxe2 {[%clk 0:00:29]}  gxh3 {[%clk 0:01:01]} 33. Bxh3 {[%clk 0:00:30]}  Rc7 {[%clk 0:01:02]} 34. Nc3 {[%clk 0:00:28]}  Rd8 {[%clk 0:01:01]} 35. Rg1 {[%clk 0:00:18]}  Be7 {[%clk 0:00:59]} 36. Be6 {[%clk 0:00:17]}  Bd6+ {[%clk 0:00:56]} 37. Kh1 {[%clk 0:00:17]}  Rf8 {[%clk 0:00:47]} 38. Nxd5 {[%clk 0:00:15]}  Ra7 {[%clk 0:00:45]} 39. Rb7 {[%clk 0:00:14]}  Rxb7 {[%clk 0:00:42]} 40. cxb7 {[%clk 0:00:15]}  h5 {[%clk 0:00:42]} 41. Rg8+ {[%clk 0:00:13]}  Rxg8 {[%clk 0:00:41]} 42. Bxg8 {[%clk 0:00:14]}  Kxg8 {[%clk 0:00:41]} 43. Nb4 {[%clk 0:00:14]} 1-0


[Site "https://www.chess.com"]

[Event "Titled Tuesday Blitz June 28 Late 2022"]
[White "Bobadilla Viera, Jorge Samuel"]
[Black "Tanenbaum, Zachary"]
[WhiteFideId "3906353"]
[BlackFideId "2060850"]
[WhiteElo "2202"]
[BlackElo "2175"]
[Result "0-1"]
[Round "10"]
[TimeControl "180+1"]
[Date "2022.06.28"]
[WhiteClock "0:00:17"]
[BlackClock "0:00:05"]

1. e4 {[%clk 0:03:00]}  e5 {[%clk 0:03:00]} 2. Nf3 {[%clk 0:03:01]}  Nc6 {[%clk 0:03:01]} 3. Bc4 {[%clk 0:03:01]}  Nf6 {[%clk 0:03:00]} 4. d3 {[%clk 0:03:00]}  Be7 {[%clk 0:03:01]} 5. O-O {[%clk 0:03:01]}  O-O {[%clk 0:03:01]} 6. Re1 {[%clk 0:03:01]}  d6 {[%clk 0:03:02]} 7. a4 {[%clk 0:03:01]}  Be6 {[%clk 0:03:02]} 8. Nbd2 {[%clk 0:03:02]}  h6 {[%clk 0:03:03]} 9. c3 {[%clk 0:03:02]}  a6 {[%clk 0:03:00]} 10. b4 {[%clk 0:03:01]}  Qd7 {[%clk 0:02:58]} 11. h3 {[%clk 0:03:01]}  Rad8 {[%clk 0:02:54]} 12. Bxe6 {[%clk 0:02:59]}  fxe6 {[%clk 0:02:53]} 13. b5 {[%clk 0:02:58]}  axb5 {[%clk 0:02:52]} 14. axb5 {[%clk 0:02:58]}  Nb8 {[%clk 0:02:53]} 15. c4 {[%clk 0:02:56]}  Qe8 {[%clk 0:02:53]} 16. Ra7 {[%clk 0:02:50]}  Nbd7 {[%clk 0:02:42]} 17. Nb3 {[%clk 0:02:37]}  Rb8 {[%clk 0:02:38]} 18. Be3 {[%clk 0:02:34]}  Nh5 {[%clk 0:02:35]} 19. Na5 {[%clk 0:02:31]}  Ra8 {[%clk 0:02:32]} 20. Rxa8 {[%clk 0:02:21]}  Qxa8 {[%clk 0:02:33]} 21. Nb3 {[%clk 0:02:18]}  Qe8 {[%clk 0:02:28]} 22. Na5 {[%clk 0:02:14]}  Qa8 {[%clk 0:02:06]} 23. Nb3 {[%clk 0:02:14]}  b6 {[%clk 0:02:03]} 24. d4 {[%clk 0:01:50]}  Nhf6 {[%clk 0:01:29]} 25. dxe5 {[%clk 0:01:48]}  Nxe5 {[%clk 0:01:27]} 26. Nxe5 {[%clk 0:01:43]}  dxe5 {[%clk 0:01:28]} 27. f3 {[%clk 0:01:41]}  Rd8 {[%clk 0:01:26]} 28. Qc2 {[%clk 0:01:36]}  Qa4 {[%clk 0:01:16]} 29. Ra1 {[%clk 0:01:29]}  Qb4 {[%clk 0:01:15]} 30. Kf2 {[%clk 0:01:12]}  Nh5 {[%clk 0:01:00]} 31. g3 {[%clk 0:01:10]}  Qd6 {[%clk 0:00:57]} 32. Ra7 {[%clk 0:00:59]}  Bg5 {[%clk 0:00:47]} 33. Bxg5 {[%clk 0:00:52]}  hxg5 {[%clk 0:00:48]} 34. c5 {[%clk 0:00:46]}  bxc5 {[%clk 0:00:41]} 35. Qxc5 {[%clk 0:00:47]}  Qd1 {[%clk 0:00:19]} 36. Qc4 {[%clk 0:00:18]}  Nxg3 {[%clk 0:00:06]} 37. Kxg3 {[%clk 0:00:17]}  Qg1# {[%clk 0:00:05]} 0-1


[Site "https://www.chess.com"]

[Event "Titled Tuesday Blitz June 28 Late 2022"]
[White "Bortnyk, Olexandr"]
[Black "So, Wesley"]
[WhiteFideId "14120828"]
[BlackFideId "5202213"]
[WhiteElo "2723"]
[BlackElo "2742"]
[Result "1-0"]
[Round "10"]
[TimeControl "180+1"]
[Date "2022.06.28"]
[WhiteClock "0:00:35"]
[BlackClock "0:00:50"]

1. d4 {[%clk 0:03:00]}  Nf6 {[%clk 0:02:59]} 2. Nc3 {[%clk 0:03:01]}  d5 {[%clk 0:02:59]} 3. Bf4 {[%clk 0:03:01]}  Bf5 {[%clk 0:02:50]} 4. e3 {[%clk 0:03:01]}  e6 {[%clk 0:02:50]} 5. Nf3 {[%clk 0:03:01]}  Bd6 {[%clk 0:02:48]} 6. Ne5 {[%clk 0:03:02]}  h6 {[%clk 0:02:43]} 7. Bd3 {[%clk 0:02:48]}  Bxd3 {[%clk 0:02:42]} 8. Nxd3 {[%clk 0:02:44]}  O-O {[%clk 0:02:39]} 9. Qf3 {[%clk 0:02:43]}  Bxf4 {[%clk 0:02:36]} 10. exf4 {[%clk 0:02:39]}  Nc6 {[%clk 0:02:32]} 11. Qe3 {[%clk 0:02:30]}  a5 {[%clk 0:02:24]} 12. f3 {[%clk 0:02:27]}  Nb4 {[%clk 0:02:19]} 13. O-O-O {[%clk 0:02:25]}  Nxd3+ {[%clk 0:02:17]} 14. cxd3 {[%clk 0:02:20]}  c5 {[%clk 0:02:12]} 15. g4 {[%clk 0:02:12]}  Rc8 {[%clk 0:02:09]} 16. Kb1 {[%clk 0:02:10]}  Ne8 {[%clk 0:01:57]} 17. f5 {[%clk 0:01:50]}  Qf6 {[%clk 0:01:50]} 18. Nb5 {[%clk 0:01:36]}  exf5 {[%clk 0:01:37]} 19. dxc5 {[%clk 0:01:24]}  fxg4 {[%clk 0:01:38]} 20. fxg4 {[%clk 0:01:20]}  Qc6 {[%clk 0:01:38]} 21. Nd4 {[%clk 0:01:18]}  Qd7 {[%clk 0:01:26]} 22. Nf5 {[%clk 0:01:16]}  Kh7 {[%clk 0:01:25]} 23. Rhf1 {[%clk 0:00:59]}  d4 {[%clk 0:01:15]} 24. Nxd4 {[%clk 0:00:56]}  Qxg4 {[%clk 0:01:07]} 25. Rg1 {[%clk 0:00:42]}  Qh5 {[%clk 0:01:02]} 26. Rdf1 {[%clk 0:00:38]}  Qxc5 {[%clk 0:00:50]} 27. Rc1 {[%clk 0:00:35]} 1-0


[Site "https://www.chess.com"]

[Event "Titled Tuesday Blitz June 28 Late 2022"]
[White "Carrasco Miranda, Andres"]
[Black "Przybylski, Wojciech"]
[WhiteFideId "3405990"]
[BlackFideId "1117599"]
[WhiteElo "2177"]
[BlackElo "2133"]
[Result "0-1"]
[Round "10"]
[TimeControl "180+1"]
[Date "2022.06.29"]
[WhiteClock "0:00:35"]
[BlackClock "0:01:20"]

1. d4 {[%clk 0:03:00]}  d5 {[%clk 0:02:57]} 2. c4 {[%clk 0:02:57]}  dxc4 {[%clk 0:02:58]} 3. e4 {[%clk 0:02:56]}  e5 {[%clk 0:02:57]} 4. Nf3 {[%clk 0:02:56]}  exd4 {[%clk 0:02:57]} 5. Bxc4 {[%clk 0:02:56]}  Bb4+ {[%clk 0:02:57]} 6. Nbd2 {[%clk 0:02:56]}  Nc6 {[%clk 0:02:55]} 7. O-O {[%clk 0:02:56]}  Nf6 {[%clk 0:02:53]} 8. e5 {[%clk 0:02:56]}  Nd5 {[%clk 0:02:53]} 9. Ne4 {[%clk 0:02:56]}  Be7 {[%clk 0:02:45]} 10. Bg5 {[%clk 0:02:38]}  h6 {[%clk 0:02:37]} 11. Bxe7 {[%clk 0:02:37]}  Ndxe7 {[%clk 0:02:37]} 12. Re1 {[%clk 0:02:14]}  O-O {[%clk 0:02:36]} 13. Qd2 {[%clk 0:02:00]}  Bf5 {[%clk 0:02:27]} 14. Rad1 {[%clk 0:01:13]}  Ng6 {[%clk 0:02:11]} 15. Ng3 {[%clk 0:01:08]}  Be6 {[%clk 0:02:08]} 16. Bxe6 {[%clk 0:01:03]}  fxe6 {[%clk 0:02:09]} 17. Nxd4 {[%clk 0:01:03]}  Nxd4 {[%clk 0:02:03]} 18. Qxd4 {[%clk 0:01:04]}  Qxd4 {[%clk 0:01:59]} 19. Rxd4 {[%clk 0:01:05]}  Rad8 {[%clk 0:01:58]} 20. Rb4 {[%clk 0:01:01]}  b6 {[%clk 0:01:57]} 21. f3 {[%clk 0:00:56]}  Rd5 {[%clk 0:01:53]} 22. Rbe4 {[%clk 0:00:48]}  Rfd8 {[%clk 0:01:52]} 23. h4 {[%clk 0:00:47]}  Rd2 {[%clk 0:01:48]} 24. h5 {[%clk 0:00:47]}  Ne7 {[%clk 0:01:47]} 25. R1e2 {[%clk 0:00:47]}  Rd1+ {[%clk 0:01:45]} 26. Kf2 {[%clk 0:00:45]}  R8d3 {[%clk 0:01:38]} 27. R4e3 {[%clk 0:00:44]}  Nd5 {[%clk 0:01:32]} 28. Rxd3 {[%clk 0:00:43]}  Rxd3 {[%clk 0:01:33]} 29. Ne4 {[%clk 0:00:41]}  Nf4 {[%clk 0:01:26]} 30. Rc2 {[%clk 0:00:38]}  c5 {[%clk 0:01:25]} 31. b4 {[%clk 0:00:35]}  Rd5 {[%clk 0:01:21]} 32. bxc5 {[%clk 0:00:35]}  bxc5 {[%clk 0:01:21]} 33. Rxc5 {[%clk 0:00:35]}  Nd3+ {[%clk 0:01:21]} 34. Ke3 {[%clk 0:00:35]}  Nxc5 {[%clk 0:01:20]} 0-1


[Site "https://www.chess.com"]

[Event "Titled Tuesday Blitz June 28 Late 2022"]
[White "Chen, Max"]
[Black "Plazuelo Pascual, Juan"]
[WhiteFideId "2622440"]
[BlackFideId "32059566"]
[WhiteElo "2482"]
[BlackElo "2359"]
[Result "0-1"]
[Round "10"]
[TimeControl "180+1"]
[Date "2022.06.28"]
[WhiteClock "0:00:03"]
[BlackClock "0:00:28"]

1. e4 {[%clk 0:03:00]}  c5 {[%clk 0:02:59]} 2. c3 {[%clk 0:03:01]}  d5 {[%clk 0:02:57]} 3. exd5 {[%clk 0:03:01]}  Qxd5 {[%clk 0:02:57]} 4. d4 {[%clk 0:03:01]}  Nc6 {[%clk 0:02:57]} 5. Nf3 {[%clk 0:03:00]}  Bf5 {[%clk 0:02:58]} 6. Be3 {[%clk 0:03:00]}  cxd4 {[%clk 0:02:56]} 7. Nxd4 {[%clk 0:02:56]}  Bd7 {[%clk 0:02:56]} 8. Nd2 {[%clk 0:02:50]}  e5 {[%clk 0:02:54]} 9. Nxc6 {[%clk 0:02:46]}  Bxc6 {[%clk 0:02:53]} 10. Qb3 {[%clk 0:02:40]}  Nf6 {[%clk 0:02:51]} 11. Bc4 {[%clk 0:02:34]}  Qd7 {[%clk 0:02:45]} 12. O-O-O {[%clk 0:02:25]}  Ba4 {[%clk 0:02:43]} 13. Bxf7+ {[%clk 0:02:19]}  Kd8 {[%clk 0:02:41]} 14. Qc4 {[%clk 0:01:41]}  b5 {[%clk 0:02:38]} 15. Qh4 {[%clk 0:01:24]}  Bxd1 {[%clk 0:02:36]} 16. Rxd1 {[%clk 0:01:23]}  Qxf7 {[%clk 0:02:35]} 17. Nc4+ {[%clk 0:01:19]}  Ke8 {[%clk 0:02:16]} 18. Nxe5 {[%clk 0:01:11]}  Qxa2 {[%clk 0:02:16]} 19. Bg5 {[%clk 0:00:58]}  Qa1+ {[%clk 0:02:13]} 20. Kc2 {[%clk 0:00:57]}  Qa4+ {[%clk 0:02:13]} 21. Qxa4 {[%clk 0:00:49]}  bxa4 {[%clk 0:02:14]} 22. Re1 {[%clk 0:00:47]}  Rg8 {[%clk 0:02:01]} 23. Ng4+ {[%clk 0:00:38]}  Kf7 {[%clk 0:01:53]} 24. Ne5+ {[%clk 0:00:37]}  Ke6 {[%clk 0:01:52]} 25. h4 {[%clk 0:00:21]}  Bd6 {[%clk 0:01:44]} 26. Nc4+ {[%clk 0:00:16]}  Kd5 {[%clk 0:01:44]} 27. Na5 {[%clk 0:00:04]}  Kc5 {[%clk 0:01:00]} 28. b4+ {[%clk 0:00:03]}  axb3+ {[%clk 0:01:00]} 29. Nxb3+ {[%clk 0:00:03]}  Kb6 {[%clk 0:00:59]} 30. Be3+ {[%clk 0:00:03]}  Kc7 {[%clk 0:00:58]} 31. Rd1 {[%clk 0:00:03]}  Rgd8 {[%clk 0:00:50]} 32. Nd4 {[%clk 0:00:03]}  Kd7 {[%clk 0:00:40]} 33. Nf5 {[%clk 0:00:03]}  Ke6 {[%clk 0:00:38]} 34. Nxg7+ {[%clk 0:00:03]}  Kf7 {[%clk 0:00:37]} 35. Nf5 {[%clk 0:00:03]}  Bf8 {[%clk 0:00:37]} 36. Rb1 {[%clk 0:00:03]}  Rab8 {[%clk 0:00:36]} 37. Ra1 {[%clk 0:00:03]}  Rb7 {[%clk 0:00:35]} 38. Nd4 {[%clk 0:00:03]}  Nd5 {[%clk 0:00:33]} 39. Bd2 {[%clk 0:00:03]}  Nb4+ {[%clk 0:00:32]} 40. Kc1 {[%clk 0:00:03]}  Nd3+ {[%clk 0:00:32]} 41. Kc2 {[%clk 0:00:03]}  Nb4+ {[%clk 0:00:30]} 42. Kc1 {[%clk 0:00:03]}  Nd5 {[%clk 0:00:28]} 43. Kc2 {[%clk 0:00:03]}  Bg7 {[%clk 0:00:29]} 44. Ne2 {[%clk 0:00:03]}  Nb4+ {[%clk 0:00:27]} 45. Kc1 {[%clk 0:00:03]}  Nd3+ {[%clk 0:00:28]} 46. Kc2 {[%clk 0:00:03]}  Rb2+ {[%clk 0:00:28]} 47. Kd1 {[%clk 0:00:03]}  Nxf2+ {[%clk 0:00:28]} 48. Ke1 {[%clk 0:00:03]}  Nd3+ {[%clk 0:00:28]} 49. Kd1 {[%clk 0:00:03]}  Nf2+ {[%clk 0:00:28]} 50. Ke1 {[%clk 0:00:03]}  Rdxd2 {[%clk 0:00:28]} 51. Rxa7+ {[%clk 0:00:03]}  Kg8 {[%clk 0:00:29]} 52. Nf4 {[%clk 0:00:03]}  Nd3+ {[%clk 0:00:28]} 53. Nxd3 {[%clk 0:00:03]}  Rxd3 {[%clk 0:00:29]} 54. Ra8+ {[%clk 0:00:03]}  Bf8 {[%clk 0:00:29]} 55. g4 {[%clk 0:00:03]}  Rh3 {[%clk 0:00:28]} 0-1


[Site "https://www.chess.com"]

[Event "Titled Tuesday Blitz June 28 Late 2022"]
[White "Colpe, Malte"]
[Black "Sanchez Alarcon, Juan"]
[WhiteFideId "24623075"]
[BlackFideId "3401332"]
[WhiteElo "2328"]
[BlackElo "2164"]
[Result "0-1"]
[Round "10"]
[TimeControl "180+1"]
[Date "2022.06.29"]
[WhiteClock "0:02:33"]
[BlackClock "0:02:28"]

1. d4 {[%clk 0:03:00]}  Nf6 {[%clk 0:02:58]} 2. c4 {[%clk 0:02:59]}  g6 {[%clk 0:02:58]} 3. Nc3 {[%clk 0:03:00]}  Bg7 {[%clk 0:02:58]} 4. e4 {[%clk 0:03:01]}  d6 {[%clk 0:02:58]} 5. f4 {[%clk 0:03:01]}  O-O {[%clk 0:02:58]} 6. Nf3 {[%clk 0:03:02]}  c5 {[%clk 0:02:58]} 7. d5 {[%clk 0:03:03]}  e6 {[%clk 0:02:59]} 8. Be2 {[%clk 0:03:03]}  exd5 {[%clk 0:02:59]} 9. cxd5 {[%clk 0:03:04]}  Bg4 {[%clk 0:02:58]} 10. O-O {[%clk 0:03:04]}  Re8 {[%clk 0:02:57]} 11. h3 {[%clk 0:03:04]}  Bxf3 {[%clk 0:02:56]} 12. Bxf3 {[%clk 0:03:05]}  Qa5 {[%clk 0:02:55]} 13. Be3 {[%clk 0:03:04]}  b5 {[%clk 0:02:54]} 14. a3 {[%clk 0:02:56]}  Nbd7 {[%clk 0:02:52]} 15. Qc2 {[%clk 0:02:52]}  b4 {[%clk 0:02:43]} 16. axb4 {[%clk 0:02:51]}  Qxb4 {[%clk 0:02:43]} 17. Ra4 {[%clk 0:02:48]}  Qb7 {[%clk 0:02:41]} 18. Rfa1 {[%clk 0:02:44]}  Reb8 {[%clk 0:02:36]} 19. R1a2 {[%clk 0:02:37]}  Qb3 {[%clk 0:02:29]} 20. e5 {[%clk 0:02:33]}  Qxc2 {[%clk 0:02:28]} 0-1


[Site "https://www.chess.com"]

[Event "Titled Tuesday Blitz June 28 Late 2022"]
[White "Corrales Jimenez, Fidel"]
[Black "Maghsoodloo, Parham"]
[WhiteFideId "3506690"]
[BlackFideId "12539929"]
[WhiteElo "2541"]
[BlackElo "2607"]
[Result "1-0"]
[Round "10"]
[TimeControl "180+1"]
[Date "2022.06.28"]
[WhiteClock "0:01:56"]
[BlackClock "0:02:26"]

1. d4 {[%clk 0:03:00]}  Nf6 {[%clk 0:02:59]} 2. c4 {[%clk 0:03:01]}  e6 {[%clk 0:02:58]} 3. Nc3 {[%clk 0:03:01]}  Bb4 {[%clk 0:02:59]} 4. e3 {[%clk 0:03:01]}  O-O {[%clk 0:02:59]} 5. Ne2 {[%clk 0:03:01]}  d5 {[%clk 0:02:59]} 6. a3 {[%clk 0:02:57]}  Bd6 {[%clk 0:02:59]} 7. cxd5 {[%clk 0:02:46]}  exd5 {[%clk 0:02:59]} 8. Nf4 {[%clk 0:02:46]}  c6 {[%clk 0:02:58]} 9. Bd3 {[%clk 0:02:45]}  Bxf4 {[%clk 0:02:55]} 10. exf4 {[%clk 0:02:45]}  Re8+ {[%clk 0:02:56]} 11. Be3 {[%clk 0:02:44]}  Ng4 {[%clk 0:02:55]} 12. Qf3 {[%clk 0:02:29]}  Nxe3 {[%clk 0:02:51]} 13. fxe3 {[%clk 0:02:28]}  Qh4+ {[%clk 0:02:50]} 14. Kd2 {[%clk 0:02:20]}  Nd7 {[%clk 0:02:48]} 15. g4 {[%clk 0:02:16]}  Nb6 {[%clk 0:02:41]} 16. f5 {[%clk 0:02:05]}  Bd7 {[%clk 0:02:32]} 17. Rag1 {[%clk 0:02:02]}  f6 {[%clk 0:02:30]} 18. Rg3 {[%clk 0:01:59]}  Re7 {[%clk 0:02:30]} 19. Rh3 {[%clk 0:01:56]}  Qg5 {[%clk 0:02:26]} 20. Rh5 {[%clk 0:01:56]} 1-0


[Site "https://www.chess.com"]